Workbook

Sheet Januar
B2: Dag | C2: Dato | E2: Tekst | F2: Komme | G2: Gå | H2: Dagens tid | I2: Pause | J2: Effektiv arbejdstid
J3: tt:mm | K3: 1/100
B4: =WEEKDAY(C4) -> 1900-01-02 | C4: 2018-01-01 | D4: =HelligdagsNavn(C4,0,0) -> Nytårsdag | F4: 07:00:00 | G4: 15:30:00 | H4: =IF(OR(F4="",G4=""),"",IF(G4<F4,G4+1-F4,G4-F4)) -> 08:30:00 | I4: 00:31:00 | J4: =IF(E4="ferie",norm!$B$11/24,IF(OR(F4="",G4=""),"",H4-I4)) -> 07:59:00 | K4: =IFERROR(J4*24,"") -> 7.983333333
B5: =WEEKDAY(C5) -> 1900-01-03 | C5: =C4+1 -> 2018-01-02 | D5: =HelligdagsNavn(C5,0,0) ->  | E5: ferie | H5: =IF(OR(F5="",G5=""),"",IF(G5<F5,G5+1-F5,G5-F5)) ->  | J5: =IF(E5="ferie",norm!$B$11/24,IF(OR(F5="",G5=""),"",H5-I5)) -> 07:24:00 | K5: =IFERROR(J5*24,"") -> 7.4
B6: 1900-01-04 | C6: =C5+1 -> 2018-01-03 | E6: afsp. | H6: =IF(OR(F6="",G6=""),"",IF(G6<F6,G6+1-F6,G6-F6)) ->  | J6: =IF(E6="ferie",norm!$B$11/24,IF(OR(F6="",G6=""),"",H6-I6)) ->  | K6: =IFERROR(J6*24,"") -> 
B7: 1900-01-05 | C7: 2018-01-04 | F7: 07:00:00 | G7: 15:00:00 | H7: =IF(OR(F7="",G7=""),"",IF(G7<F7,G7+1-F7,G7-F7)) -> 08:00:00 | J7: =IF(E7="ferie",norm!$B$11/24,IF(OR(F7="",G7=""),"",H7-I7)) -> 08:00:00 | K7: =IFERROR(J7*24,"") -> 8
B8: 1900-01-06 | C8: 2018-01-05 | E8: ferie | H8: =IF(OR(F8="",G8=""),"",IF(G8<F8,G8+1-F8,G8-F8)) ->  | J8: =IF(E8="ferie",norm!$B$11/24,IF(OR(F8="",G8=""),"",H8-I8)) -> 07:24:00 | K8: =IFERROR(J8*24,"") -> 7.4
B9: 1900-01-07 | C9: 2018-01-06 | J9: =IF(E9="ferie",norm!$B$11/24,IF(OR(F9="",G9=""),"",H9-I9)) -> 
B10: 1900-01-01 | C10: 2018-01-07 | J10: =IF(E10="ferie",norm!$B$11/24,IF(OR(F10="",G10=""),"",H10-I10)) -> 
B11: 1900-01-02 | C11: 2018-01-08 | F11: 07:00:00 | G11: 15:30:00 | H11: =IF(OR(F11="",G11=""),"",IF(G11<F11,G11+1-F11,G11-F11)) -> 08:30:00 | I11: 00:31:00 | J11: =IF(E11="ferie",norm!$B$11/24,IF(OR(F11="",G11=""),"",H11-I11)) -> 07:59:00 | K11: =IFERROR(J11*24,"") -> 7.983333333
B12: 1900-01-03 | C12: 2018-01-09 | F12: 20:00:00 | G12: 01:00:00 | H12: =IF(OR(F12="",G12=""),"",IF(G12<F12,G12+1-F12,G12-F12)) -> 05:00:00 | J12: =IF(E12="ferie",norm!$B$11/24,IF(OR(F12="",G12=""),"",H12-I12)) -> 05:00:00 | K12: =IFERROR(J12*24,"") -> 5
B13: 1900-01-04 | C13: 2018-01-10 | F13: 07:00:00 | G13: 23:00:00 | H13: =IF(OR(F13="",G13=""),"",IF(G13<F13,G13+1-F13,G13-F13)) -> 16:00:00 | J13: =IF(E13="ferie",norm!$B$11/24,IF(OR(F13="",G13=""),"",H13-I13)) -> 16:00:00 | K13: =IFERROR(J13*24,"") -> 16
B14: 1900-01-05 | C14: 2018-01-11 | H14: =IF(OR(F14="",G14=""),"",IF(G14<F14,G14+1-F14,G14-F14)) ->  | J14: =IF(E14="ferie",norm!$B$11/24,IF(OR(F14="",G14=""),"",H14-I14)) ->  | K14: =IFERROR(J14*24,"") -> 
B15: 1900-01-06 | C15: 2018-01-12 | H15: =IF(OR(F15="",G15=""),"",IF(G15<F15,G15+1-F15,G15-F15)) ->  | J15: =IF(E15="ferie",norm!$B$11/24,IF(OR(F15="",G15=""),"",H15-I15)) ->  | K15: =IFERROR(J15*24,"") -> 
B16: 1900-01-07 | C16: 2018-01-13 | J16: =IF(E16="ferie",norm!$B$11/24,IF(OR(F16="",G16=""),"",H16-I16)) ->  | K16: =IFERROR(J16*24,"") -> 
B17: 1900-01-01 | C17: 2018-01-14 | J17: =IF(E17="ferie",norm!$B$11/24,IF(OR(F17="",G17=""),"",H17-I17)) -> 
B18: 1900-01-02 | C18: 2018-01-15 | F18: 07:00:00 | G18: 15:30:00 | H18: =IF(OR(F18="",G18=""),"",IF(G18<F18,G18+1-F18,G18-F18)) -> 08:30:00 | I18: 00:31:00 | J18: =IF(E18="ferie",norm!$B$11/24,IF(OR(F18="",G18=""),"",H18-I18)) -> 07:59:00 | K18: =IFERROR(J18*24,"") -> 7.983333333
B19: 1900-01-03 | C19: 2018-01-16 | F19: 20:00:00 | G19: 01:00:00 | H19: =IF(OR(F19="",G19=""),"",IF(G19<F19,G19+1-F19,G19-F19)) -> 05:00:00 | J19: =IF(E19="ferie",norm!$B$11/24,IF(OR(F19="",G19=""),"",H19-I19)) -> 05:00:00 | K19: =IFERROR(J19*24,"") -> 5
B20: 1900-01-04 | C20: 2018-01-17 | F20: 07:00:00 | G20: 23:00:00 | H20: =IF(OR(F20="",G20=""),"",IF(G20<F20,G20+1-F20,G20-F20)) -> 16:00:00 | J20: =IF(E20="ferie",norm!$B$11/24,IF(OR(F20="",G20=""),"",H20-I20)) -> 16:00:00 | K20: =IFERROR(J20*24,"") -> 16
B21: 1900-01-05 | C21: 2018-01-18 | H21: =IF(OR(F21="",G21=""),"",IF(G21<F21,G21+1-F21,G21-F21)) ->  | J21: =IF(E21="ferie",norm!$B$11/24,IF(OR(F21="",G21=""),"",H21-I21)) ->  | K21: =IFERROR(J21*24,"") -> 
B22: 1900-01-06 | C22: 2018-01-19 | H22: =IF(OR(F22="",G22=""),"",IF(G22<F22,G22+1-F22,G22-F22)) ->  | J22: =IF(E22="ferie",norm!$B$11/24,IF(OR(F22="",G22=""),"",H22-I22)) ->  | K22: =IFERROR(J22*24,"") -> 
B23: 1900-01-07 | C23: 2018-01-20 | H23: =IF(OR(F23="",G23=""),"",IF(G23<F23,G23+1-F23,G23-F23)) ->  | J23: =IF(E23="ferie",norm!$B$11/24,IF(OR(F23="",G23=""),"",H23-I23)) ->  | K23: =IFERROR(J23*24,"") -> 
B24: 1900-01-01 | C24: 2018-01-21 | J24: =IF(E24="ferie",norm!$B$11/24,IF(OR(F24="",G24=""),"",H24-I24)) -> 
B25: 1900-01-02 | C25: 2018-01-22 | F25: 07:00:00 | G25: 15:30:00 | H25: =IF(OR(F25="",G25=""),"",IF(G25<F25,G25+1-F25,G25-F25)) -> 08:30:00 | I25: 00:31:00 | J25: =IF(E25="ferie",norm!$B$11/24,IF(OR(F25="",G25=""),"",H25-I25)) -> 07:59:00 | K25: =IFERROR(J25*24,"") -> 7.983333333
B26: 1900-01-03 | C26: 2018-01-23 | F26: 20:00:00 | G26: 01:00:00 | H26: =IF(OR(F26="",G26=""),"",IF(G26<F26,G26+1-F26,G26-F26)) -> 05:00:00 | J26: =IF(E26="ferie",norm!$B$11/24,IF(OR(F26="",G26=""),"",H26-I26)) -> 05:00:00 | K26: =IFERROR(J26*24,"") -> 5
B27: 1900-01-04 | C27: 2018-01-24 | F27: 07:00:00 | G27: 23:00:00 | H27: =IF(OR(F27="",G27=""),"",IF(G27<F27,G27+1-F27,G27-F27)) -> 16:00:00 | J27: =IF(E27="ferie",norm!$B$11/24,IF(OR(F27="",G27=""),"",H27-I27)) -> 16:00:00 | K27: =IFERROR(J27*24,"") -> 16
B28: 1900-01-05 | C28: 2018-01-25 | H28: =IF(OR(F28="",G28=""),"",IF(G28<F28,G28+1-F28,G28-F28)) ->  | J28: =IF(E28="ferie",norm!$B$11/24,IF(OR(F28="",G28=""),"",H28-I28)) ->  | K28: =IFERROR(J28*24,"") -> 
B29: 1900-01-06 | C29: 2018-01-26 | H29: =IF(OR(F29="",G29=""),"",IF(G29<F29,G29+1-F29,G29-F29)) ->  | J29: =IF(E29="ferie",norm!$B$11/24,IF(OR(F29="",G29=""),"",H29-I29)) ->  | K29: =IFERROR(J29*24,"") -> 
B30: 1900-01-07 | C30: 2018-01-27 | H30: =IF(OR(F30="",G30=""),"",IF(G30<F30,G30+1-F30,G30-F30)) ->  | J30: =IF(E30="ferie",norm!$B$11/24,IF(OR(F30="",G30=""),"",H30-I30)) ->  | K30: =IFERROR(J30*24,"") -> 
B31: 1900-01-01 | C31: 2018-01-28 | J31: =IF(E31="ferie",norm!$B$11/24,IF(OR(F31="",G31=""),"",H31-I31)) -> 
B32: 1900-01-02 | C32: =IF(MONTH(C31+1)>MONTH(C31),"",C31+1) -> 2018-01-29 | F32: 07:00:00 | G32: 15:30:00 | H32: =IF(OR(F32="",G32=""),"",IF(G32<F32,G32+1-F32,G32-F32)) -> 08:30:00 | I32: 00:31:00 | J32: =IF(E32="ferie",norm!$B$11/24,IF(OR(F32="",G32=""),"",H32-I32)) -> 07:59:00 | K32: =IFERROR(J32*24,"") -> 7.983333333
B33: 1900-01-03 | C33: 2018-01-30 | F33: 20:00:00 | G33: 01:00:00 | H33: =IF(OR(F33="",G33=""),"",IF(G33<F33,G33+1-F33,G33-F33)) -> 05:00:00 | J33: =IF(E33="ferie",norm!$B$11/24,IF(OR(F33="",G33=""),"",H33-I33)) -> 05:00:00 | K33: =IFERROR(J33*24,"") -> 5
B34: 1900-01-04 | C34: 2018-01-31 | F34: 07:00:00 | G34: 23:00:00 | H34: =IF(OR(F34="",G34=""),"",IF(G34<F34,G34+1-F34,G34-F34)) -> 16:00:00 | J34: =IF(E34="ferie",norm!$B$11/24,IF(OR(F34="",G34=""),"",H34-I34)) -> 16:00:00 | K34: =IFERROR(J34*24,"") -> 16
B35: =IFERROR(WEEKDAY(C35),"") ->  | C35: =IFERROR(IF(MONTH(C34+1)>MONTH(C34),"",C34+1),"") ->  | H35: =IF(OR(F35="",G35=""),"",IF(G35<F35,G35+1-F35,G35-F35)) ->  | J35: =IF(E35="ferie",norm!$B$11/24,IF(OR(F35="",G35=""),"",H35-I35)) ->  | K35: =IFERROR(J35*24,"") -> 
B36: =IFERROR(WEEKDAY(C36),"") ->  | C36: =IFERROR(IF(MONTH(C35+1)>MONTH(C35),"",C35+1),"") ->  | H36: =IF(OR(F36="",G36=""),"",IF(G36<F36,G36+1-F36,G36-F36)) ->  | J36: =IF(E36="ferie",norm!$B$11/24,IF(OR(F36="",G36=""),"",H36-I36)) ->  | K36: =IFERROR(J36*24,"") ->  | N36: =IF(C36<>"",CHOOSE(WEEKDAY(C36,2),norm!B$1,norm!B$2,norm!B$3,norm!B$4,norm!B$5,norm!B$6,norm!B$7),"") -> 
J37: =IF(E37="ferie",norm!$B$11/24,IF(OR(F37="",G37=""),"",H37-I37)) ->  | N37: =IF(C37<>"",CHOOSE(WEEKDAY(C37,2),norm!B$1,norm!B$2,norm!B$3,norm!B$4,norm!B$5,norm!B$6,norm!B$7),"") -> 
J38: =IF(E38="ferie",norm!$B$11/24,IF(OR(F38="",G38=""),"",H38-I38)) ->  | N38: =IF(C38<>"",CHOOSE(WEEKDAY(C38,2),norm!B$1,norm!B$2,norm!B$3,norm!B$4,norm!B$5,norm!B$6,norm!B$7),"") -> 
H39: Total timer | J39: =SUM(J4:J38) -> 6.113194444 | K39: =J39*24 -> 146.7166667
C40: =NETWORKDAYS(C4,C34,helligdage!B2:B12) -> 22 | E40: arbejdsdage | I40: Måneds norm | K40: =C40*7.4 -> 162.8
I41: Månedens flekstid | K41: =K39-K40 -> -16.08333333

Sheet Februar
B2: Dag | C2: Dato | E2: Tekst | F2: Komme | G2: Gå | H2: Dagens tid | I2: Pause | J2: Effektiv arbejdstid | V2: Skudår | W2: uge norm | X2: dags norm
B3: =WEEKDAY(C3) -> 1900-01-05 | C3: =DATE(YEAR(Januar!$C$4),2,1) -> 2018-02-01 | F3: 07:00:00 | G3: 15:30:00 | H3: =IF(OR(F3="",G3=""),"",IF(G3<F3,G3+1-F3,G3-F3)) -> 08:30:00 | J3: =IF(E3="ferie",$X$3/24,IF(OR(F3="",G3=""),"",H3-I3)) -> 08:30:00 | W3: 37 | X3: 7.4
B4: =WEEKDAY(C4) -> 1900-01-06 | C4: =C3+1 -> 2018-02-02 | E4: ferie | H4: =IF(OR(F4="",G4=""),"",IF(G4<F4,G4+1-F4,G4-F4)) ->  | J4: 07:24:00
B5: 1900-01-07 | C5: =C4+1 -> 2018-02-03 | E5: afsp. | H5: =IF(OR(F5="",G5=""),"",IF(G5<F5,G5+1-F5,G5-F5)) -> 
B6: 1900-01-01 | C6: 2018-02-04 | F6: 07:00:00 | G6: 15:00:00 | H6: =IF(OR(F6="",G6=""),"",IF(G6<F6,G6+1-F6,G6-F6)) -> 08:00:00 | J6: 08:00:00
B7: 1900-01-02 | C7: 2018-02-05 | E7: ferie | H7: =IF(OR(F7="",G7=""),"",IF(G7<F7,G7+1-F7,G7-F7)) ->  | J7: 07:24:00
B8: 1900-01-03 | C8: 2018-02-06
B9: 1900-01-04 | C9: 2018-02-07
B10: 1900-01-05 | C10: 2018-02-08 | F10: 07:00:00 | G10: 15:30:00 | H10: =IF(OR(F10="",G10=""),"",IF(G10<F10,G10+1-F10,G10-F10)) -> 08:30:00 | J10: 08:30:00
B11: 1900-01-06 | C11: 2018-02-09 | F11: 20:00:00 | G11: 01:00:00 | H11: =IF(OR(F11="",G11=""),"",IF(G11<F11,G11+1-F11,G11-F11)) -> 05:00:00 | J11: 05:00:00
B12: 1900-01-07 | C12: 2018-02-10 | F12: 07:00:00 | G12: 23:00:00 | H12: =IF(OR(F12="",G12=""),"",IF(G12<F12,G12+1-F12,G12-F12)) -> 16:00:00 | J12: 16:00:00
B13: 1900-01-01 | C13: 2018-02-11 | H13: =IF(OR(F13="",G13=""),"",IF(G13<F13,G13+1-F13,G13-F13)) -> 
B14: 1900-01-02 | C14: 2018-02-12 | H14: =IF(OR(F14="",G14=""),"",IF(G14<F14,G14+1-F14,G14-F14)) -> 
B15: 1900-01-03 | C15: 2018-02-13
B16: 1900-01-04 | C16: 2018-02-14
B17: 1900-01-05 | C17: 2018-02-15 | F17: 07:00:00 | G17: 15:30:00 | H17: =IF(OR(F17="",G17=""),"",IF(G17<F17,G17+1-F17,G17-F17)) -> 08:30:00 | J17: 08:30:00
B18: 1900-01-06 | C18: 2018-02-16 | F18: 20:00:00 | G18: 01:00:00 | H18: =IF(OR(F18="",G18=""),"",IF(G18<F18,G18+1-F18,G18-F18)) -> 05:00:00 | J18: 05:00:00
B19: 1900-01-07 | C19: 2018-02-17 | F19: 07:00:00 | G19: 23:00:00 | H19: =IF(OR(F19="",G19=""),"",IF(G19<F19,G19+1-F19,G19-F19)) -> 16:00:00 | J19: 16:00:00
B20: 1900-01-01 | C20: 2018-02-18 | H20: =IF(OR(F20="",G20=""),"",IF(G20<F20,G20+1-F20,G20-F20)) -> 
B21: 1900-01-02 | C21: 2018-02-19 | H21: =IF(OR(F21="",G21=""),"",IF(G21<F21,G21+1-F21,G21-F21)) -> 
B22: 1900-01-03 | C22: 2018-02-20 | H22: =IF(OR(F22="",G22=""),"",IF(G22<F22,G22+1-F22,G22-F22)) -> 
B23: 1900-01-04 | C23: 2018-02-21
B24: 1900-01-05 | C24: 2018-02-22 | F24: 07:00:00 | G24: 15:30:00 | H24: =IF(OR(F24="",G24=""),"",IF(G24<F24,G24+1-F24,G24-F24)) -> 08:30:00 | J24: 08:30:00
B25: 1900-01-06 | C25: 2018-02-23 | F25: 20:00:00 | G25: 01:00:00 | H25: =IF(OR(F25="",G25=""),"",IF(G25<F25,G25+1-F25,G25-F25)) -> 05:00:00 | J25: 05:00:00
B26: 1900-01-07 | C26: 2018-02-24 | F26: 07:00:00 | G26: 23:00:00 | H26: =IF(OR(F26="",G26=""),"",IF(G26<F26,G26+1-F26,G26-F26)) -> 16:00:00 | J26: 16:00:00
B27: 1900-01-01 | C27: 2018-02-25 | H27: =IF(OR(F27="",G27=""),"",IF(G27<F27,G27+1-F27,G27-F27)) -> 
B28: 1900-01-02 | C28: 2018-02-26 | H28: =IF(OR(F28="",G28=""),"",IF(G28<F28,G28+1-F28,G28-F28)) -> 
B29: 1900-01-03 | C29: 2018-02-27 | H29: =IF(OR(F29="",G29=""),"",IF(G29<F29,G29+1-F29,G29-F29)) -> 
B30: 1900-01-04 | C30: 2018-02-28
B31: =IFERROR(WEEKDAY(C31),"") ->  | C31: =IF(MONTH(C30+1)>MONTH(C30),"",C30+1) ->  | H31: =IF(OR(F31="",G31=""),"",IF(G31<F31,G31+1-F31,G31-F31)) -> 
B32: =IFERROR(WEEKDAY(C32),"") ->  | C32: =IFERROR(IF(MONTH(C31+1)>MONTH(C31),"",C31+1),"") ->  | H32: =IF(OR(F32="",G32=""),"",IF(G32<F32,G32+1-F32,G32-F32)) ->  | N32: =IFERROR(CHOOSE(WEEKDAY(C32,2),norm!B$1,norm!B$2,norm!B$3,norm!B$4,norm!B$5,norm!B$6,norm!B$7),"") -> 
C33: =IFERROR(IF(MONTH(C32+1)>MONTH(C32),"",C32+1),"") ->  | H33: =IF(OR(F33="",G33=""),"",IF(G33<F33,G33+1-F33,G33-F33)) ->  | N33: =IFERROR(CHOOSE(WEEKDAY(C33,2),norm!B$1,norm!B$2,norm!B$3,norm!B$4,norm!B$5,norm!B$6,norm!B$7),"") -> 
H34: =IF(OR(F34="",G34=""),"",IF(G34<F34,G34+1-F34,G34-F34)) ->  | N34: =IFERROR(CHOOSE(WEEKDAY(C34,2),norm!B$1,norm!B$2,norm!B$3,norm!B$4,norm!B$5,norm!B$6,norm!B$7),"") -> 
H35: =IF(OR(F35="",G35=""),"",IF(G35<F35,G35+1-F35,G35-F35)) ->  | N35: =IFERROR(CHOOSE(WEEKDAY(C35,2),norm!B$1,norm!B$2,norm!B$3,norm!B$4,norm!B$5,norm!B$6,norm!B$7),"") -> 
N36: =IFERROR(CHOOSE(WEEKDAY(C36,2),norm!B$1,norm!B$2,norm!B$3,norm!B$4,norm!B$5,norm!B$6,norm!B$7),"") -> 
N37: =IFERROR(CHOOSE(WEEKDAY(C37,2),norm!B$1,norm!B$2,norm!B$3,norm!B$4,norm!B$5,norm!B$6,norm!B$7),"") -> 
H38: Total timer | J38: =SUM(J3:J37) -> 4.991666667
H39: 1/100 dele | J39: =J38*24 -> 119.8
C40: =IF(T.!C1>28,NETWORKDAYS(C3,C31,helligdage!B2:B12),NETWORKDAYS(C3,C30,helligdage!B2:B12)) -> 20 | D40: arbejdsdage | H40: Måneds norm | J40: =C40*7.4 -> 148
H41: Månedens flekstid | J41: =J39-J40 -> -28.2

Sheet Marts
N1: Kun for test | Q1: uge norm | R1: 37
E2: Tekst | F2: Komme | G2: Gå | H2: Dagens tid | I2: Pause | J2: Eff. arbejdstid | L2: TT:MM | M2: 1/100 | N2: norm | Q2: dags norm | R2: 7.4 | T2: Flex konto
B3: =WEEKDAY(C3) -> 1900-01-05 | C3: =DATE(YEAR(Januar!$C$4),3,1) -> 2018-03-01 | H3: =IF(OR(F3="",G3=""),"",IF(G3<F3,G3+1-F3,G3-F3)) ->  | I3: 00:31:00 | J3: =IF(E3="ferie",$R$2/24,IF(OR(F3="",G3=""),"",H3-I3)) ->  | K3: =IFERROR(J3*24,"") ->  | N3: =CHOOSE(WEEKDAY(C3,2),norm!B$1,norm!B$2,norm!B$3,norm!B$4,norm!B$5,norm!B$6,norm!B$7) -> 7.4 | Q3: Uge 1 | R3: =M9-R1 -> -37
B4: =WEEKDAY(C4) -> 1900-01-06 | C4: =C3+1 -> 2018-03-02 | E4: ferie | H4: =IF(OR(F4="",G4=""),"",IF(G4<F4,G4+1-F4,G4-F4)) ->  | J4: =IF(E4="ferie",$R$2/24,IF(OR(F4="",G4=""),"",H4-I4)) -> 07:24:00 | K4: =IFERROR(J4*24,"") -> 7.4 | N4: =CHOOSE(WEEKDAY(C4,2),norm!B$1,norm!B$2,norm!B$3,norm!B$4,norm!B$5,norm!B$6,norm!B$7) -> 7.4 | Q4: Uge 2 | R4: =M16-R1 -> -37 | T4: =SUM(R3:R7) -> -99.2
B5: 1900-01-07 | C5: =C4+1 -> 2018-03-03 | E5: afsp. | H5: =IF(OR(F5="",G5=""),"",IF(G5<F5,G5+1-F5,G5-F5)) ->  | K5: =IFERROR(J5*24,"") ->  | N5: =CHOOSE(WEEKDAY(C5,2),norm!B$1,norm!B$2,norm!B$3,norm!B$4,norm!B$5,norm!B$6,norm!B$7) -> 0 | Q5: Uge 3 | R5: =M23-R1 -> -37
B6: 1900-01-01 | C6: 2018-03-04 | F6: 07:00:00 | G6: 15:00:00 | H6: =IF(OR(F6="",G6=""),"",IF(G6<F6,G6+1-F6,G6-F6)) -> 08:00:00 | J6: 08:00:00 | K6: =IFERROR(J6*24,"") -> 8 | N6: =CHOOSE(WEEKDAY(C6,2),norm!B$1,norm!B$2,norm!B$3,norm!B$4,norm!B$5,norm!B$6,norm!B$7) -> 0 | Q6: Uge 4 | R6: =M30-R1 -> -37
B7: 1900-01-02 | C7: 2018-03-05 | E7: ferie | H7: =IF(OR(F7="",G7=""),"",IF(G7<F7,G7+1-F7,G7-F7)) ->  | J7: 07:24:00 | K7: =IFERROR(J7*24,"") -> 7.4 | N7: =CHOOSE(WEEKDAY(C7,2),norm!B$1,norm!B$2,norm!B$3,norm!B$4,norm!B$5,norm!B$6,norm!B$7) -> 7.4 | Q7: Uge 5 | R7: =K38-R1 -> 48.8
B8: 1900-01-03 | C8: 2018-03-06 | N8: =CHOOSE(WEEKDAY(C8,2),norm!B$1,norm!B$2,norm!B$3,norm!B$4,norm!B$5,norm!B$6,norm!B$7) -> 7.4 | T8: =K38-K39 -> -62.2
B9: 1900-01-04 | C9: 2018-03-07 | N9: =CHOOSE(WEEKDAY(C9,2),norm!B$1,norm!B$2,norm!B$3,norm!B$4,norm!B$5,norm!B$6,norm!B$7) -> 7.4
B10: 1900-01-05 | C10: 2018-03-08 | H10: =IF(OR(F10="",G10=""),"",IF(G10<F10,G10+1-F10,G10-F10)) ->  | I10: 00:31:00 | K10: =IFERROR(J10*24,"") ->  | N10: =CHOOSE(WEEKDAY(C10,2),norm!B$1,norm!B$2,norm!B$3,norm!B$4,norm!B$5,norm!B$6,norm!B$7) -> 7.4
B11: 1900-01-06 | C11: 2018-03-09 | F11: 20:00:00 | G11: 01:00:00 | H11: =IF(OR(F11="",G11=""),"",IF(G11<F11,G11+1-F11,G11-F11)) -> 05:00:00 | J11: 05:00:00 | K11: =IFERROR(J11*24,"") -> 5 | N11: =CHOOSE(WEEKDAY(C11,2),norm!B$1,norm!B$2,norm!B$3,norm!B$4,norm!B$5,norm!B$6,norm!B$7) -> 7.4
B12: 1900-01-07 | C12: 2018-03-10 | F12: 07:00:00 | G12: 23:00:00 | H12: =IF(OR(F12="",G12=""),"",IF(G12<F12,G12+1-F12,G12-F12)) -> 16:00:00 | J12: 16:00:00 | K12: =IFERROR(J12*24,"") -> 16 | N12: =CHOOSE(WEEKDAY(C12,2),norm!B$1,norm!B$2,norm!B$3,norm!B$4,norm!B$5,norm!B$6,norm!B$7) -> 0
B13: 1900-01-01 | C13: 2018-03-11 | H13: =IF(OR(F13="",G13=""),"",IF(G13<F13,G13+1-F13,G13-F13)) ->  | K13: =IFERROR(J13*24,"") ->  | N13: =CHOOSE(WEEKDAY(C13,2),norm!B$1,norm!B$2,norm!B$3,norm!B$4,norm!B$5,norm!B$6,norm!B$7) -> 0
B14: 1900-01-02 | C14: 2018-03-12 | H14: =IF(OR(F14="",G14=""),"",IF(G14<F14,G14+1-F14,G14-F14)) ->  | K14: =IFERROR(J14*24,"") ->  | N14: =CHOOSE(WEEKDAY(C14,2),norm!B$1,norm!B$2,norm!B$3,norm!B$4,norm!B$5,norm!B$6,norm!B$7) -> 7.4
B15: 1900-01-03 | C15: 2018-03-13 | K15: =IFERROR(J15*24,"") ->  | N15: =CHOOSE(WEEKDAY(C15,2),norm!B$1,norm!B$2,norm!B$3,norm!B$4,norm!B$5,norm!B$6,norm!B$7) -> 7.4
B16: 1900-01-04 | C16: 2018-03-14 | N16: =CHOOSE(WEEKDAY(C16,2),norm!B$1,norm!B$2,norm!B$3,norm!B$4,norm!B$5,norm!B$6,norm!B$7) -> 7.4
B17: 1900-01-05 | C17: 2018-03-15 | H17: =IF(OR(F17="",G17=""),"",IF(G17<F17,G17+1-F17,G17-F17)) ->  | I17: 00:31:00 | K17: =IFERROR(J17*24,"") ->  | N17: =CHOOSE(WEEKDAY(C17,2),norm!B$1,norm!B$2,norm!B$3,norm!B$4,norm!B$5,norm!B$6,norm!B$7) -> 7.4
B18: 1900-01-06 | C18: 2018-03-16 | F18: 20:00:00 | G18: 01:00:00 | H18: =IF(OR(F18="",G18=""),"",IF(G18<F18,G18+1-F18,G18-F18)) -> 05:00:00 | J18: 05:00:00 | K18: =IFERROR(J18*24,"") -> 5 | N18: =CHOOSE(WEEKDAY(C18,2),norm!B$1,norm!B$2,norm!B$3,norm!B$4,norm!B$5,norm!B$6,norm!B$7) -> 7.4
B19: 1900-01-07 | C19: 2018-03-17 | F19: 07:00:00 | G19: 23:00:00 | H19: =IF(OR(F19="",G19=""),"",IF(G19<F19,G19+1-F19,G19-F19)) -> 16:00:00 | J19: 16:00:00 | K19: =IFERROR(J19*24,"") -> 16 | N19: =CHOOSE(WEEKDAY(C19,2),norm!B$1,norm!B$2,norm!B$3,norm!B$4,norm!B$5,norm!B$6,norm!B$7) -> 0
B20: 1900-01-01 | C20: 2018-03-18 | H20: =IF(OR(F20="",G20=""),"",IF(G20<F20,G20+1-F20,G20-F20)) ->  | K20: =IFERROR(J20*24,"") ->  | N20: =CHOOSE(WEEKDAY(C20,2),norm!B$1,norm!B$2,norm!B$3,norm!B$4,norm!B$5,norm!B$6,norm!B$7) -> 0
B21: 1900-01-02 | C21: 2018-03-19 | H21: =IF(OR(F21="",G21=""),"",IF(G21<F21,G21+1-F21,G21-F21)) ->  | K21: =IFERROR(J21*24,"") ->  | N21: =CHOOSE(WEEKDAY(C21,2),norm!B$1,norm!B$2,norm!B$3,norm!B$4,norm!B$5,norm!B$6,norm!B$7) -> 7.4
B22: 1900-01-03 | C22: 2018-03-20 | H22: =IF(OR(F22="",G22=""),"",IF(G22<F22,G22+1-F22,G22-F22)) ->  | K22: =IFERROR(J22*24,"") ->  | N22: =CHOOSE(WEEKDAY(C22,2),norm!B$1,norm!B$2,norm!B$3,norm!B$4,norm!B$5,norm!B$6,norm!B$7) -> 7.4
B23: 1900-01-04 | C23: 2018-03-21 | N23: =CHOOSE(WEEKDAY(C23,2),norm!B$1,norm!B$2,norm!B$3,norm!B$4,norm!B$5,norm!B$6,norm!B$7) -> 7.4
B24: 1900-01-05 | C24: 2018-03-22 | H24: =IF(OR(F24="",G24=""),"",IF(G24<F24,G24+1-F24,G24-F24)) ->  | I24: 00:31:00 | K24: =IFERROR(J24*24,"") ->  | N24: =CHOOSE(WEEKDAY(C24,2),norm!B$1,norm!B$2,norm!B$3,norm!B$4,norm!B$5,norm!B$6,norm!B$7) -> 7.4
B25: 1900-01-06 | C25: 2018-03-23 | F25: 20:00:00 | G25: 01:00:00 | H25: =IF(OR(F25="",G25=""),"",IF(G25<F25,G25+1-F25,G25-F25)) -> 05:00:00 | J25: 05:00:00 | K25: =IFERROR(J25*24,"") -> 5 | N25: =CHOOSE(WEEKDAY(C25,2),norm!B$1,norm!B$2,norm!B$3,norm!B$4,norm!B$5,norm!B$6,norm!B$7) -> 7.4
B26: 1900-01-07 | C26: 2018-03-24 | F26: 07:00:00 | G26: 23:00:00 | H26: =IF(OR(F26="",G26=""),"",IF(G26<F26,G26+1-F26,G26-F26)) -> 16:00:00 | J26: 16:00:00 | K26: =IFERROR(J26*24,"") -> 16 | N26: =CHOOSE(WEEKDAY(C26,2),norm!B$1,norm!B$2,norm!B$3,norm!B$4,norm!B$5,norm!B$6,norm!B$7) -> 0
B27: 1900-01-01 | C27: 2018-03-25 | H27: =IF(OR(F27="",G27=""),"",IF(G27<F27,G27+1-F27,G27-F27)) ->  | K27: =IFERROR(J27*24,"") ->  | N27: =CHOOSE(WEEKDAY(C27,2),norm!B$1,norm!B$2,norm!B$3,norm!B$4,norm!B$5,norm!B$6,norm!B$7) -> 0
B28: 1900-01-02 | C28: 2018-03-26 | H28: =IF(OR(F28="",G28=""),"",IF(G28<F28,G28+1-F28,G28-F28)) ->  | K28: =IFERROR(J28*24,"") ->  | N28: =CHOOSE(WEEKDAY(C28,2),norm!B$1,norm!B$2,norm!B$3,norm!B$4,norm!B$5,norm!B$6,norm!B$7) -> 7.4
B29: 1900-01-03 | C29: 2018-03-27 | H29: =IF(OR(F29="",G29=""),"",IF(G29<F29,G29+1-F29,G29-F29)) ->  | K29: =IFERROR(J29*24,"") ->  | N29: =CHOOSE(WEEKDAY(C29,2),norm!B$1,norm!B$2,norm!B$3,norm!B$4,norm!B$5,norm!B$6,norm!B$7) -> 7.4
B30: 1900-01-04 | C30: 2018-03-28 | N30: =CHOOSE(WEEKDAY(C30,2),norm!B$1,norm!B$2,norm!B$3,norm!B$4,norm!B$5,norm!B$6,norm!B$7) -> 7.4
B31: =IFERROR(WEEKDAY(C31),"") -> 1900-01-05 | C31: =IF(MONTH(C30+1)>MONTH(C30),"",C30+1) -> 2018-03-29 | H31: =IF(OR(F31="",G31=""),"",IF(G31<F31,G31+1-F31,G31-F31)) ->  | K31: =IFERROR(J31*24,"") ->  | N31: =IFERROR(CHOOSE(WEEKDAY(C31,2),norm!B$1,norm!B$2,norm!B$3,norm!B$4,norm!B$5,norm!B$6,norm!B$7),"") -> 7.4
B32: =IFERROR(WEEKDAY(C32),"") -> 1900-01-06 | C32: =IFERROR(IF(MONTH(C31+1)>MONTH(C31),"",C31+1),"") -> 2018-03-30 | H32: =IF(OR(F32="",G32=""),"",IF(G32<F32,G32+1-F32,G32-F32)) ->  | K32: =IFERROR(J32*24,"") ->  | N32: =IFERROR(CHOOSE(WEEKDAY(C32,2),norm!B$1,norm!B$2,norm!B$3,norm!B$4,norm!B$5,norm!B$6,norm!B$7),"") -> 7.4
B33: 1900-01-07 | C33: =IFERROR(IF(MONTH(C32+1)>MONTH(C32),"",C32+1),"") -> 2018-03-31 | H33: =IF(OR(F33="",G33=""),"",IF(G33<F33,G33+1-F33,G33-F33)) ->  | K33: =IFERROR(J33*24,"") ->  | N33: =IFERROR(CHOOSE(WEEKDAY(C33,2),norm!B$1,norm!B$2,norm!B$3,norm!B$4,norm!B$5,norm!B$6,norm!B$7),"") -> 0
H34: =IF(OR(F34="",G34=""),"",IF(G34<F34,G34+1-F34,G34-F34)) ->  | K34: =IFERROR(J34*24,"") ->  | N34: =IFERROR(CHOOSE(WEEKDAY(C34,2),norm!B$1,norm!B$2,norm!B$3,norm!B$4,norm!B$5,norm!B$6,norm!B$7),"") -> 
H35: =IF(OR(F35="",G35=""),"",IF(G35<F35,G35+1-F35,G35-F35)) ->  | K35: =IFERROR(J35*24,"") ->  | N35: =IFERROR(CHOOSE(WEEKDAY(C35,2),norm!B$1,norm!B$2,norm!B$3,norm!B$4,norm!B$5,norm!B$6,norm!B$7),"") -> 
N36: =IFERROR(CHOOSE(WEEKDAY(C36,2),norm!B$1,norm!B$2,norm!B$3,norm!B$4,norm!B$5,norm!B$6,norm!B$7),"") -> 
N37: =IFERROR(CHOOSE(WEEKDAY(C37,2),norm!B$1,norm!B$2,norm!B$3,norm!B$4,norm!B$5,norm!B$6,norm!B$7),"") -> 
H38: Total timer | J38: =SUM(J3:J33) -> 3.575 | K38: =J38*24 -> 85.8
C39: =NETWORKDAYS(C3,C33,helligdage!B2:B12) -> 20 | D39: arbejdsdage | I39: Måneds norm | K39: =C39*R2 -> 148
I40: Månedens flekstid

Sheet April
L1: Total timer måned | N1: Kun for test | Q1: uge norm | R1: 37
B2: Ugedag | C2: Dato | D2: Dag | E2: Tekst | F2: Komme | G2: Gå | H2: Dagens tid | I2: Pause | J2: Effektiv arbejdstid | L2: TT:MM | M2: 1/100 | N2: norm | Q2: dags norm | R2: 7.4 | T2: Flex konto
B3: =WEEKDAY(C3) -> 1900-01-01 | C3: =DATE(YEAR(Januar!$C$4),4,1) -> 2018-04-01 | D3: =HelligdagsNavn(C3,0,0) -> Påskedag | H3: =IF(OR(F3="",G3=""),"",IF(G3<F3,G3+1-F3,G3-F3)) ->  | J3: =IF(E3="ferie",$R$2/24,IF(OR(F3="",G3=""),"",H3-I3)) ->  | K3: =IFERROR(J3*24,"") ->  | N3: =CHOOSE(WEEKDAY(C3,2),norm!B$1,norm!B$2,norm!B$3,norm!B$4,norm!B$5,norm!B$6,norm!B$7) -> 0 | Q3: Uge 1 | R3: =M9-R1 -> -37
B4: =WEEKDAY(C4) -> 1900-01-02 | C4: =C3+1 -> 2018-04-02 | D4: =HelligdagsNavn(C4,0,0) -> 2. Påskedag | E4: ferie | H4: =IF(OR(F4="",G4=""),"",IF(G4<F4,G4+1-F4,G4-F4)) ->  | J4: =IF(E4="ferie",$R$2/24,IF(OR(F4="",G4=""),"",H4-I4)) -> 07:24:00 | K4: =IFERROR(J4*24,"") -> 7.4 | N4: =CHOOSE(WEEKDAY(C4,2),norm!B$1,norm!B$2,norm!B$3,norm!B$4,norm!B$5,norm!B$6,norm!B$7) -> 7.4 | Q4: Uge 2 | R4: =M16-R1 -> -37 | T4: =SUM(R3:R7) -> -99.2
B5: 1900-01-03 | C5: =C4+1 -> 2018-04-03 | E5: afsp. | H5: =IF(OR(F5="",G5=""),"",IF(G5<F5,G5+1-F5,G5-F5)) ->  | K5: =IFERROR(J5*24,"") ->  | N5: =CHOOSE(WEEKDAY(C5,2),norm!B$1,norm!B$2,norm!B$3,norm!B$4,norm!B$5,norm!B$6,norm!B$7) -> 7.4 | Q5: Uge 3 | R5: =M23-R1 -> -37
B6: 1900-01-04 | C6: 2018-04-04 | F6: 07:00:00 | G6: 15:00:00 | H6: =IF(OR(F6="",G6=""),"",IF(G6<F6,G6+1-F6,G6-F6)) -> 08:00:00 | J6: 08:00:00 | K6: =IFERROR(J6*24,"") -> 8 | N6: =CHOOSE(WEEKDAY(C6,2),norm!B$1,norm!B$2,norm!B$3,norm!B$4,norm!B$5,norm!B$6,norm!B$7) -> 7.4 | Q6: Uge 4 | R6: =M30-R1 -> -37
B7: 1900-01-05 | C7: 2018-04-05 | E7: ferie | H7: =IF(OR(F7="",G7=""),"",IF(G7<F7,G7+1-F7,G7-F7)) ->  | J7: 07:24:00 | K7: =IFERROR(J7*24,"") -> 7.4 | N7: =CHOOSE(WEEKDAY(C7,2),norm!B$1,norm!B$2,norm!B$3,norm!B$4,norm!B$5,norm!B$6,norm!B$7) -> 7.4 | Q7: Uge 5 | R7: =M38-R1 -> 48.8
B8: 1900-01-06 | C8: 2018-04-06 | N8: =CHOOSE(WEEKDAY(C8,2),norm!B$1,norm!B$2,norm!B$3,norm!B$4,norm!B$5,norm!B$6,norm!B$7) -> 7.4 | T8: =M38-M39 -> -54.8
B9: 1900-01-07 | C9: 2018-04-07 | N9: =CHOOSE(WEEKDAY(C9,2),norm!B$1,norm!B$2,norm!B$3,norm!B$4,norm!B$5,norm!B$6,norm!B$7) -> 0
B10: 1900-01-01 | C10: 2018-04-08 | H10: =IF(OR(F10="",G10=""),"",IF(G10<F10,G10+1-F10,G10-F10)) ->  | K10: =IFERROR(J10*24,"") ->  | N10: =CHOOSE(WEEKDAY(C10,2),norm!B$1,norm!B$2,norm!B$3,norm!B$4,norm!B$5,norm!B$6,norm!B$7) -> 0
B11: 1900-01-02 | C11: 2018-04-09 | F11: 20:00:00 | G11: 01:00:00 | H11: =IF(OR(F11="",G11=""),"",IF(G11<F11,G11+1-F11,G11-F11)) -> 05:00:00 | J11: 05:00:00 | K11: =IFERROR(J11*24,"") -> 5 | N11: =CHOOSE(WEEKDAY(C11,2),norm!B$1,norm!B$2,norm!B$3,norm!B$4,norm!B$5,norm!B$6,norm!B$7) -> 7.4
B12: 1900-01-03 | C12: 2018-04-10 | F12: 07:00:00 | G12: 23:00:00 | H12: =IF(OR(F12="",G12=""),"",IF(G12<F12,G12+1-F12,G12-F12)) -> 16:00:00 | J12: 16:00:00 | K12: =IFERROR(J12*24,"") -> 16 | N12: =CHOOSE(WEEKDAY(C12,2),norm!B$1,norm!B$2,norm!B$3,norm!B$4,norm!B$5,norm!B$6,norm!B$7) -> 7.4
B13: 1900-01-04 | C13: 2018-04-11 | H13: =IF(OR(F13="",G13=""),"",IF(G13<F13,G13+1-F13,G13-F13)) ->  | K13: =IFERROR(J13*24,"") ->  | N13: =CHOOSE(WEEKDAY(C13,2),norm!B$1,norm!B$2,norm!B$3,norm!B$4,norm!B$5,norm!B$6,norm!B$7) -> 7.4
B14: 1900-01-05 | C14: 2018-04-12 | H14: =IF(OR(F14="",G14=""),"",IF(G14<F14,G14+1-F14,G14-F14)) ->  | K14: =IFERROR(J14*24,"") ->  | N14: =CHOOSE(WEEKDAY(C14,2),norm!B$1,norm!B$2,norm!B$3,norm!B$4,norm!B$5,norm!B$6,norm!B$7) -> 7.4
B15: 1900-01-06 | C15: 2018-04-13 | K15: =IFERROR(J15*24,"") ->  | N15: =CHOOSE(WEEKDAY(C15,2),norm!B$1,norm!B$2,norm!B$3,norm!B$4,norm!B$5,norm!B$6,norm!B$7) -> 7.4
B16: 1900-01-07 | C16: 2018-04-14 | N16: =CHOOSE(WEEKDAY(C16,2),norm!B$1,norm!B$2,norm!B$3,norm!B$4,norm!B$5,norm!B$6,norm!B$7) -> 0
B17: 1900-01-01 | C17: 2018-04-15 | H17: =IF(OR(F17="",G17=""),"",IF(G17<F17,G17+1-F17,G17-F17)) ->  | K17: =IFERROR(J17*24,"") ->  | N17: =CHOOSE(WEEKDAY(C17,2),norm!B$1,norm!B$2,norm!B$3,norm!B$4,norm!B$5,norm!B$6,norm!B$7) -> 0
B18: 1900-01-02 | C18: 2018-04-16 | F18: 20:00:00 | G18: 01:00:00 | H18: =IF(OR(F18="",G18=""),"",IF(G18<F18,G18+1-F18,G18-F18)) -> 05:00:00 | J18: 05:00:00 | K18: =IFERROR(J18*24,"") -> 5 | N18: =CHOOSE(WEEKDAY(C18,2),norm!B$1,norm!B$2,norm!B$3,norm!B$4,norm!B$5,norm!B$6,norm!B$7) -> 7.4
B19: 1900-01-03 | C19: 2018-04-17 | F19: 07:00:00 | G19: 23:00:00 | H19: =IF(OR(F19="",G19=""),"",IF(G19<F19,G19+1-F19,G19-F19)) -> 16:00:00 | J19: 16:00:00 | K19: =IFERROR(J19*24,"") -> 16 | N19: =CHOOSE(WEEKDAY(C19,2),norm!B$1,norm!B$2,norm!B$3,norm!B$4,norm!B$5,norm!B$6,norm!B$7) -> 7.4
B20: 1900-01-04 | C20: 2018-04-18 | H20: =IF(OR(F20="",G20=""),"",IF(G20<F20,G20+1-F20,G20-F20)) ->  | K20: =IFERROR(J20*24,"") ->  | N20: =CHOOSE(WEEKDAY(C20,2),norm!B$1,norm!B$2,norm!B$3,norm!B$4,norm!B$5,norm!B$6,norm!B$7) -> 7.4
B21: 1900-01-05 | C21: 2018-04-19 | H21: =IF(OR(F21="",G21=""),"",IF(G21<F21,G21+1-F21,G21-F21)) ->  | K21: =IFERROR(J21*24,"") ->  | N21: =CHOOSE(WEEKDAY(C21,2),norm!B$1,norm!B$2,norm!B$3,norm!B$4,norm!B$5,norm!B$6,norm!B$7) -> 7.4
B22: 1900-01-06 | C22: 2018-04-20 | H22: =IF(OR(F22="",G22=""),"",IF(G22<F22,G22+1-F22,G22-F22)) ->  | K22: =IFERROR(J22*24,"") ->  | N22: =CHOOSE(WEEKDAY(C22,2),norm!B$1,norm!B$2,norm!B$3,norm!B$4,norm!B$5,norm!B$6,norm!B$7) -> 7.4
B23: 1900-01-07 | C23: 2018-04-21 | N23: =CHOOSE(WEEKDAY(C23,2),norm!B$1,norm!B$2,norm!B$3,norm!B$4,norm!B$5,norm!B$6,norm!B$7) -> 0
B24: 1900-01-01 | C24: 2018-04-22 | H24: =IF(OR(F24="",G24=""),"",IF(G24<F24,G24+1-F24,G24-F24)) ->  | K24: =IFERROR(J24*24,"") ->  | N24: =CHOOSE(WEEKDAY(C24,2),norm!B$1,norm!B$2,norm!B$3,norm!B$4,norm!B$5,norm!B$6,norm!B$7) -> 0
B25: 1900-01-02 | C25: 2018-04-23 | F25: 20:00:00 | G25: 01:00:00 | H25: =IF(OR(F25="",G25=""),"",IF(G25<F25,G25+1-F25,G25-F25)) -> 05:00:00 | J25: 05:00:00 | K25: =IFERROR(J25*24,"") -> 5 | N25: =CHOOSE(WEEKDAY(C25,2),norm!B$1,norm!B$2,norm!B$3,norm!B$4,norm!B$5,norm!B$6,norm!B$7) -> 7.4
B26: 1900-01-03 | C26: 2018-04-24 | F26: 07:00:00 | G26: 23:00:00 | H26: =IF(OR(F26="",G26=""),"",IF(G26<F26,G26+1-F26,G26-F26)) -> 16:00:00 | J26: 16:00:00 | K26: =IFERROR(J26*24,"") -> 16 | N26: =CHOOSE(WEEKDAY(C26,2),norm!B$1,norm!B$2,norm!B$3,norm!B$4,norm!B$5,norm!B$6,norm!B$7) -> 7.4
B27: 1900-01-04 | C27: 2018-04-25 | H27: =IF(OR(F27="",G27=""),"",IF(G27<F27,G27+1-F27,G27-F27)) ->  | K27: =IFERROR(J27*24,"") ->  | N27: =CHOOSE(WEEKDAY(C27,2),norm!B$1,norm!B$2,norm!B$3,norm!B$4,norm!B$5,norm!B$6,norm!B$7) -> 7.4
B28: 1900-01-05 | C28: 2018-04-26 | H28: =IF(OR(F28="",G28=""),"",IF(G28<F28,G28+1-F28,G28-F28)) ->  | K28: =IFERROR(J28*24,"") ->  | N28: =CHOOSE(WEEKDAY(C28,2),norm!B$1,norm!B$2,norm!B$3,norm!B$4,norm!B$5,norm!B$6,norm!B$7) -> 7.4
B29: 1900-01-06 | C29: 2018-04-27 | D29: Store Bededag | H29: =IF(OR(F29="",G29=""),"",IF(G29<F29,G29+1-F29,G29-F29)) ->  | K29: =IFERROR(J29*24,"") ->  | N29: =CHOOSE(WEEKDAY(C29,2),norm!B$1,norm!B$2,norm!B$3,norm!B$4,norm!B$5,norm!B$6,norm!B$7) -> 7.4
B30: 1900-01-07 | C30: 2018-04-28 | N30: =CHOOSE(WEEKDAY(C30,2),norm!B$1,norm!B$2,norm!B$3,norm!B$4,norm!B$5,norm!B$6,norm!B$7) -> 0
B31: =IFERROR(WEEKDAY(C31),"") -> 1900-01-01 | C31: =IF(MONTH(C30+1)>MONTH(C30),"",C30+1) -> 2018-04-29 | H31: =IF(OR(F31="",G31=""),"",IF(G31<F31,G31+1-F31,G31-F31)) ->  | K31: =IFERROR(J31*24,"") ->  | N31: =IFERROR(CHOOSE(WEEKDAY(C31,2),norm!B$1,norm!B$2,norm!B$3,norm!B$4,norm!B$5,norm!B$6,norm!B$7),"") -> 0
B32: =IFERROR(WEEKDAY(C32),"") -> 1900-01-02 | C32: =IFERROR(IF(MONTH(C31+1)>MONTH(C31),"",C31+1),"") -> 2018-04-30 | H32: =IF(OR(F32="",G32=""),"",IF(G32<F32,G32+1-F32,G32-F32)) ->  | K32: =IFERROR(J32*24,"") ->  | N32: =IFERROR(CHOOSE(WEEKDAY(C32,2),norm!B$1,norm!B$2,norm!B$3,norm!B$4,norm!B$5,norm!B$6,norm!B$7),"") -> 7.4
C33: =IFERROR(IF(MONTH(C32+1)>MONTH(C32),"",C32+1),"") ->  | H33: =IF(OR(F33="",G33=""),"",IF(G33<F33,G33+1-F33,G33-F33)) ->  | K33: =IFERROR(J33*24,"") ->  | N33: =IFERROR(CHOOSE(WEEKDAY(C33,2),norm!B$1,norm!B$2,norm!B$3,norm!B$4,norm!B$5,norm!B$6,norm!B$7),"") -> 
H34: =IF(OR(F34="",G34=""),"",IF(G34<F34,G34+1-F34,G34-F34)) ->  | K34: =IFERROR(J34*24,"") ->  | N34: =IFERROR(CHOOSE(WEEKDAY(C34,2),norm!B$1,norm!B$2,norm!B$3,norm!B$4,norm!B$5,norm!B$6,norm!B$7),"") -> 
H35: =IF(OR(F35="",G35=""),"",IF(G35<F35,G35+1-F35,G35-F35)) ->  | K35: =IFERROR(J35*24,"") ->  | N35: =IFERROR(CHOOSE(WEEKDAY(C35,2),norm!B$1,norm!B$2,norm!B$3,norm!B$4,norm!B$5,norm!B$6,norm!B$7),"") -> 
N36: =IFERROR(CHOOSE(WEEKDAY(C36,2),norm!B$1,norm!B$2,norm!B$3,norm!B$4,norm!B$5,norm!B$6,norm!B$7),"") -> 
N37: =IFERROR(CHOOSE(WEEKDAY(C37,2),norm!B$1,norm!B$2,norm!B$3,norm!B$4,norm!B$5,norm!B$6,norm!B$7),"") -> 
L38: =SUM(J3:J33) -> 3.575 | M38: =L38*24 -> 85.8
C39: =NETWORKDAYS(C3,C32,helligdage!B2:B12) -> 19 | D39: arbejdsdage | K39: Måneds norm | M39: =C39*R2 -> 140.6
K40: Månedens flekstid | M40: =M38-M39 -> -54.8

Sheet December
J1: Effektiv arbejdstid | L1: Total timer måned | N1: Kun for test | Q1: uge norm | R1: 37
B2: Ugedag | C2: Dato | D2: Dag | E2: Tekst | F2: Komme | G2: Gå | H2: Dagens tid | I2: Pause | J2: TT:MM | K2: 1/100 | N2: norm | Q2: dags norm | R2: 7.4 | T2: Flex konto
B3: =WEEKDAY(C3) -> 1900-01-07 | C3: =DATE(YEAR(Januar!$C$4),12,1) -> 2018-12-01 | D3: =HelligdagsNavn(C3,0,0) ->  | H3: =IF(OR(F3="",G3=""),"",IF(G3<F3,G3+1-F3,G3-F3)) ->  | J3: =IF(E3="ferie",$R$2/24,IF(OR(F3="",G3=""),"",H3-I3)) ->  | K3: =IFERROR(J3*24,"") ->  | N3: =CHOOSE(WEEKDAY(C3,2),norm!B$1,norm!B$2,norm!B$3,norm!B$4,norm!B$5,norm!B$6,norm!B$7) -> 0 | Q3: Uge 1 | R3: =M9-R1 -> -37
B4: =WEEKDAY(C4) -> 1900-01-01 | C4: =C3+1 -> 2018-12-02 | D4: =HelligdagsNavn(C4,0,0) ->  | E4: ferie | H4: =IF(OR(F4="",G4=""),"",IF(G4<F4,G4+1-F4,G4-F4)) ->  | J4: =IF(E4="ferie",$R$2/24,IF(OR(F4="",G4=""),"",H4-I4)) -> 07:24:00 | K4: =IFERROR(J4*24,"") -> 7.4 | N4: =CHOOSE(WEEKDAY(C4,2),norm!B$1,norm!B$2,norm!B$3,norm!B$4,norm!B$5,norm!B$6,norm!B$7) -> 0 | Q4: Uge 2 | R4: =M16-R1 -> -37 | T4: =SUM(R3:R7) -> -99.2
B5: 1900-01-02 | C5: =C4+1 -> 2018-12-03 | E5: afsp. | H5: =IF(OR(F5="",G5=""),"",IF(G5<F5,G5+1-F5,G5-F5)) ->  | K5: =IFERROR(J5*24,"") ->  | N5: =CHOOSE(WEEKDAY(C5,2),norm!B$1,norm!B$2,norm!B$3,norm!B$4,norm!B$5,norm!B$6,norm!B$7) -> 7.4 | Q5: Uge 3 | R5: =M23-R1 -> -37
B6: 1900-01-03 | C6: 2018-12-04 | F6: 07:00:00 | G6: 15:00:00 | H6: =IF(OR(F6="",G6=""),"",IF(G6<F6,G6+1-F6,G6-F6)) -> 08:00:00 | J6: 08:00:00 | K6: =IFERROR(J6*24,"") -> 8 | N6: =CHOOSE(WEEKDAY(C6,2),norm!B$1,norm!B$2,norm!B$3,norm!B$4,norm!B$5,norm!B$6,norm!B$7) -> 7.4 | Q6: Uge 4 | R6: =M30-R1 -> -37
B7: 1900-01-04 | C7: 2018-12-05 | E7: ferie | H7: =IF(OR(F7="",G7=""),"",IF(G7<F7,G7+1-F7,G7-F7)) ->  | J7: 07:24:00 | K7: =IFERROR(J7*24,"") -> 7.4 | N7: =CHOOSE(WEEKDAY(C7,2),norm!B$1,norm!B$2,norm!B$3,norm!B$4,norm!B$5,norm!B$6,norm!B$7) -> 7.4 | Q7: Uge 5 | R7: =K38-R1 -> 48.8
B8: 1900-01-05 | C8: 2018-12-06 | N8: =CHOOSE(WEEKDAY(C8,2),norm!B$1,norm!B$2,norm!B$3,norm!B$4,norm!B$5,norm!B$6,norm!B$7) -> 7.4 | T8: =K38-K39 -> -54.8
B9: 1900-01-06 | C9: 2018-12-07 | N9: =CHOOSE(WEEKDAY(C9,2),norm!B$1,norm!B$2,norm!B$3,norm!B$4,norm!B$5,norm!B$6,norm!B$7) -> 7.4
B10: 1900-01-07 | C10: 2018-12-08 | H10: =IF(OR(F10="",G10=""),"",IF(G10<F10,G10+1-F10,G10-F10)) ->  | K10: =IFERROR(J10*24,"") ->  | N10: =CHOOSE(WEEKDAY(C10,2),norm!B$1,norm!B$2,norm!B$3,norm!B$4,norm!B$5,norm!B$6,norm!B$7) -> 0
B11: 1900-01-01 | C11: 2018-12-09 | F11: 20:00:00 | G11: 01:00:00 | H11: =IF(OR(F11="",G11=""),"",IF(G11<F11,G11+1-F11,G11-F11)) -> 05:00:00 | J11: 05:00:00 | K11: =IFERROR(J11*24,"") -> 5 | N11: =CHOOSE(WEEKDAY(C11,2),norm!B$1,norm!B$2,norm!B$3,norm!B$4,norm!B$5,norm!B$6,norm!B$7) -> 0
B12: 1900-01-02 | C12: 2018-12-10 | F12: 07:00:00 | G12: 23:00:00 | H12: =IF(OR(F12="",G12=""),"",IF(G12<F12,G12+1-F12,G12-F12)) -> 16:00:00 | J12: 16:00:00 | K12: =IFERROR(J12*24,"") -> 16 | N12: =CHOOSE(WEEKDAY(C12,2),norm!B$1,norm!B$2,norm!B$3,norm!B$4,norm!B$5,norm!B$6,norm!B$7) -> 7.4
B13: 1900-01-03 | C13: 2018-12-11 | H13: =IF(OR(F13="",G13=""),"",IF(G13<F13,G13+1-F13,G13-F13)) ->  | K13: =IFERROR(J13*24,"") ->  | N13: =CHOOSE(WEEKDAY(C13,2),norm!B$1,norm!B$2,norm!B$3,norm!B$4,norm!B$5,norm!B$6,norm!B$7) -> 7.4
B14: 1900-01-04 | C14: 2018-12-12 | H14: =IF(OR(F14="",G14=""),"",IF(G14<F14,G14+1-F14,G14-F14)) ->  | K14: =IFERROR(J14*24,"") ->  | N14: =CHOOSE(WEEKDAY(C14,2),norm!B$1,norm!B$2,norm!B$3,norm!B$4,norm!B$5,norm!B$6,norm!B$7) -> 7.4
B15: 1900-01-05 | C15: 2018-12-13 | K15: =IFERROR(J15*24,"") ->  | N15: =CHOOSE(WEEKDAY(C15,2),norm!B$1,norm!B$2,norm!B$3,norm!B$4,norm!B$5,norm!B$6,norm!B$7) -> 7.4
B16: 1900-01-06 | C16: 2018-12-14 | N16: =CHOOSE(WEEKDAY(C16,2),norm!B$1,norm!B$2,norm!B$3,norm!B$4,norm!B$5,norm!B$6,norm!B$7) -> 7.4
B17: 1900-01-07 | C17: 2018-12-15 | H17: =IF(OR(F17="",G17=""),"",IF(G17<F17,G17+1-F17,G17-F17)) ->  | K17: =IFERROR(J17*24,"") ->  | N17: =CHOOSE(WEEKDAY(C17,2),norm!B$1,norm!B$2,norm!B$3,norm!B$4,norm!B$5,norm!B$6,norm!B$7) -> 0
B18: 1900-01-01 | C18: 2018-12-16 | F18: 20:00:00 | G18: 01:00:00 | H18: =IF(OR(F18="",G18=""),"",IF(G18<F18,G18+1-F18,G18-F18)) -> 05:00:00 | J18: 05:00:00 | K18: =IFERROR(J18*24,"") -> 5 | N18: =CHOOSE(WEEKDAY(C18,2),norm!B$1,norm!B$2,norm!B$3,norm!B$4,norm!B$5,norm!B$6,norm!B$7) -> 0
B19: 1900-01-02 | C19: 2018-12-17 | F19: 07:00:00 | G19: 23:00:00 | H19: =IF(OR(F19="",G19=""),"",IF(G19<F19,G19+1-F19,G19-F19)) -> 16:00:00 | J19: 16:00:00 | K19: =IFERROR(J19*24,"") -> 16 | N19: =CHOOSE(WEEKDAY(C19,2),norm!B$1,norm!B$2,norm!B$3,norm!B$4,norm!B$5,norm!B$6,norm!B$7) -> 7.4
B20: 1900-01-03 | C20: 2018-12-18 | H20: =IF(OR(F20="",G20=""),"",IF(G20<F20,G20+1-F20,G20-F20)) ->  | K20: =IFERROR(J20*24,"") ->  | N20: =CHOOSE(WEEKDAY(C20,2),norm!B$1,norm!B$2,norm!B$3,norm!B$4,norm!B$5,norm!B$6,norm!B$7) -> 7.4
B21: 1900-01-04 | C21: 2018-12-19 | H21: =IF(OR(F21="",G21=""),"",IF(G21<F21,G21+1-F21,G21-F21)) ->  | K21: =IFERROR(J21*24,"") ->  | N21: =CHOOSE(WEEKDAY(C21,2),norm!B$1,norm!B$2,norm!B$3,norm!B$4,norm!B$5,norm!B$6,norm!B$7) -> 7.4
B22: 1900-01-05 | C22: 2018-12-20 | H22: =IF(OR(F22="",G22=""),"",IF(G22<F22,G22+1-F22,G22-F22)) ->  | K22: =IFERROR(J22*24,"") ->  | N22: =CHOOSE(WEEKDAY(C22,2),norm!B$1,norm!B$2,norm!B$3,norm!B$4,norm!B$5,norm!B$6,norm!B$7) -> 7.4
B23: 1900-01-06 | C23: 2018-12-21 | N23: =CHOOSE(WEEKDAY(C23,2),norm!B$1,norm!B$2,norm!B$3,norm!B$4,norm!B$5,norm!B$6,norm!B$7) -> 7.4
B24: 1900-01-07 | C24: 2018-12-22 | H24: =IF(OR(F24="",G24=""),"",IF(G24<F24,G24+1-F24,G24-F24)) ->  | K24: =IFERROR(J24*24,"") ->  | N24: =CHOOSE(WEEKDAY(C24,2),norm!B$1,norm!B$2,norm!B$3,norm!B$4,norm!B$5,norm!B$6,norm!B$7) -> 0
B25: 1900-01-01 | C25: 2018-12-23 | F25: 20:00:00 | G25: 01:00:00 | H25: =IF(OR(F25="",G25=""),"",IF(G25<F25,G25+1-F25,G25-F25)) -> 05:00:00 | J25: 05:00:00 | K25: =IFERROR(J25*24,"") -> 5 | N25: =CHOOSE(WEEKDAY(C25,2),norm!B$1,norm!B$2,norm!B$3,norm!B$4,norm!B$5,norm!B$6,norm!B$7) -> 0
B26: 1900-01-02 | C26: 2018-12-24 | D26: Julaftensdag | F26: 07:00:00 | G26: 23:00:00 | H26: =IF(OR(F26="",G26=""),"",IF(G26<F26,G26+1-F26,G26-F26)) -> 16:00:00 | J26: 16:00:00 | K26: =IFERROR(J26*24,"") -> 16 | N26: =CHOOSE(WEEKDAY(C26,2),norm!B$1,norm!B$2,norm!B$3,norm!B$4,norm!B$5,norm!B$6,norm!B$7) -> 7.4
B27: 1900-01-03 | C27: 2018-12-25 | D27: 1. Juledag | H27: =IF(OR(F27="",G27=""),"",IF(G27<F27,G27+1-F27,G27-F27)) ->  | K27: =IFERROR(J27*24,"") ->  | N27: =CHOOSE(WEEKDAY(C27,2),norm!B$1,norm!B$2,norm!B$3,norm!B$4,norm!B$5,norm!B$6,norm!B$7) -> 7.4
B28: 1900-01-04 | C28: 2018-12-26 | D28: 2. Juledag | H28: =IF(OR(F28="",G28=""),"",IF(G28<F28,G28+1-F28,G28-F28)) ->  | K28: =IFERROR(J28*24,"") ->  | N28: =CHOOSE(WEEKDAY(C28,2),norm!B$1,norm!B$2,norm!B$3,norm!B$4,norm!B$5,norm!B$6,norm!B$7) -> 7.4
B29: 1900-01-05 | C29: 2018-12-27 | H29: =IF(OR(F29="",G29=""),"",IF(G29<F29,G29+1-F29,G29-F29)) ->  | K29: =IFERROR(J29*24,"") ->  | N29: =CHOOSE(WEEKDAY(C29,2),norm!B$1,norm!B$2,norm!B$3,norm!B$4,norm!B$5,norm!B$6,norm!B$7) -> 7.4
B30: 1900-01-06 | C30: 2018-12-28 | N30: =CHOOSE(WEEKDAY(C30,2),norm!B$1,norm!B$2,norm!B$3,norm!B$4,norm!B$5,norm!B$6,norm!B$7) -> 7.4
B31: =IFERROR(WEEKDAY(C31),"") -> 1900-01-07 | C31: =IF(MONTH(C30+1)>MONTH(C30),"",C30+1) -> 2018-12-29 | H31: =IF(OR(F31="",G31=""),"",IF(G31<F31,G31+1-F31,G31-F31)) ->  | K31: =IFERROR(J31*24,"") ->  | N31: =IFERROR(CHOOSE(WEEKDAY(C31,2),norm!B$1,norm!B$2,norm!B$3,norm!B$4,norm!B$5,norm!B$6,norm!B$7),"") -> 0
B32: =IFERROR(WEEKDAY(C32),"") -> 1900-01-01 | C32: =IFERROR(IF(MONTH(C31+1)>MONTH(C31),"",C31+1),"") -> 2018-12-30 | H32: =IF(OR(F32="",G32=""),"",IF(G32<F32,G32+1-F32,G32-F32)) ->  | K32: =IFERROR(J32*24,"") ->  | N32: =IFERROR(CHOOSE(WEEKDAY(C32,2),norm!B$1,norm!B$2,norm!B$3,norm!B$4,norm!B$5,norm!B$6,norm!B$7),"") -> 0
B33: 1900-01-02 | C33: =IFERROR(IF(MONTH(C32+1)>MONTH(C32),"",C32+1),"") -> 2018-12-31 | H33: =IF(OR(F33="",G33=""),"",IF(G33<F33,G33+1-F33,G33-F33)) ->  | K33: =IFERROR(J33*24,"") ->  | N33: =IFERROR(CHOOSE(WEEKDAY(C33,2),norm!B$1,norm!B$2,norm!B$3,norm!B$4,norm!B$5,norm!B$6,norm!B$7),"") -> 7.4
C34: =IFERROR(IF(OR(YEAR(C33+1)>YEAR(C33),MONTH(C33+1)>MONTH(C33)),"",C33+1),"") ->  | H34: =IF(OR(F34="",G34=""),"",IF(G34<F34,G34+1-F34,G34-F34)) ->  | K34: =IFERROR(J34*24,"") ->  | N34: =IFERROR(CHOOSE(WEEKDAY(C34,2),norm!B$1,norm!B$2,norm!B$3,norm!B$4,norm!B$5,norm!B$6,norm!B$7),"") -> 
C35: =IFERROR(IF(OR(YEAR(C34+1)>YEAR(C34),MONTH(C34+1)>MONTH(C34)),"",C34+1),"") ->  | H35: =IF(OR(F35="",G35=""),"",IF(G35<F35,G35+1-F35,G35-F35)) ->  | K35: =IFERROR(J35*24,"") ->  | N35: =IFERROR(CHOOSE(WEEKDAY(C35,2),norm!B$1,norm!B$2,norm!B$3,norm!B$4,norm!B$5,norm!B$6,norm!B$7),"") -> 
N36: =IFERROR(CHOOSE(WEEKDAY(C36,2),norm!B$1,norm!B$2,norm!B$3,norm!B$4,norm!B$5,norm!B$6,norm!B$7),"") -> 
N37: =IFERROR(CHOOSE(WEEKDAY(C37,2),norm!B$1,norm!B$2,norm!B$3,norm!B$4,norm!B$5,norm!B$6,norm!B$7),"") -> 
H38: Total timer | J38: =SUM(J3:J33) -> 3.575 | K38: =J38*24 -> 85.8
C39: =NETWORKDAYS(C3,C33,helligdage!B2:B12) -> 19 | E39: arbejdsdage | I39: Måneds norm | K39: =C39*R2 -> 140.6
I40: Månedens flekstid | K40: =K38-K39 -> -54.8

Sheet Januar (2)
L1: Total timer uge | N1: Kun for test | Q1: uge norm | R1: 37
B2: Dag | C2: Dato | E2: Tekst | F2: Komme | G2: Gå | H2: Dagens tid | I2: Pause | J2: Effektiv arbejdstid | L2: TT:MM | M2: 1/100 | N2: norm | Q2: dags norm | R2: 7.4 | T2: Flex konto
A3: Uge 1 | B3: =WEEKDAY(C3) -> 1900-01-02 | C3: 2018-01-01 | F3: 07:00:00 | G3: 15:30:00 | H3: =IF(OR(F3="",G3=""),"",IF(G3<F3,G3+1-F3,G3-F3)) -> 08:30:00 | I3: 00:31:00 | J3: =IF(E3="ferie",N3/24,IF(OR(F3="",G3=""),"",H3-I3)) -> 07:59:00 | K3: =IFERROR(J3*24,"") -> 7.983333333 | N3: =CHOOSE(WEEKDAY(C3,2),norm!B$1,norm!B$2,norm!B$3,norm!B$4,norm!B$5,norm!B$6,norm!B$7) -> 7.4 | Q3: Uge 1 | R3: =M9-R1 -> -6.216666667
B4: =WEEKDAY(C4) -> 1900-01-03 | C4: =C3+1 -> 2018-01-02 | E4: ferie | H4: =IF(OR(F4="",G4=""),"",IF(G4<F4,G4+1-F4,G4-F4)) ->  | J4: 07:24:00 | K4: =IFERROR(J4*24,"") -> 7.4 | N4: =CHOOSE(WEEKDAY(C4,2),norm!B$1,norm!B$2,norm!B$3,norm!B$4,norm!B$5,norm!B$6,norm!B$7) -> 7.4 | Q4: Uge 2 | R4: =M16-R1 -> -8.016666667 | T4: =SUM(R3:R7) -> -38.28333333
B5: 1900-01-04 | C5: =C4+1 -> 2018-01-03 | E5: afsp. | H5: =IF(OR(F5="",G5=""),"",IF(G5<F5,G5+1-F5,G5-F5)) ->  | K5: =IFERROR(J5*24,"") ->  | N5: =CHOOSE(WEEKDAY(C5,2),norm!B$1,norm!B$2,norm!B$3,norm!B$4,norm!B$5,norm!B$6,norm!B$7) -> 7.4 | Q5: Uge 3 | R5: =M23-R1 -> -8.016666667
B6: 1900-01-05 | C6: 2018-01-04 | F6: 07:00:00 | G6: 15:00:00 | H6: =IF(OR(F6="",G6=""),"",IF(G6<F6,G6+1-F6,G6-F6)) -> 08:00:00 | J6: 08:00:00 | K6: =IFERROR(J6*24,"") -> 8 | N6: =CHOOSE(WEEKDAY(C6,2),norm!B$1,norm!B$2,norm!B$3,norm!B$4,norm!B$5,norm!B$6,norm!B$7) -> 7.4 | Q6: Uge 4 | R6: =M30-R1 -> -8.016666667
B7: 1900-01-06 | C7: 2018-01-05 | E7: ferie | H7: =IF(OR(F7="",G7=""),"",IF(G7<F7,G7+1-F7,G7-F7)) ->  | J7: =IF(E7="ferie",N7/24,IF(OR(F7="",G7=""),"",H7-I7)) -> 07:24:00 | K7: =IFERROR(J7*24,"") -> 7.4 | N7: =CHOOSE(WEEKDAY(C7,2),norm!B$1,norm!B$2,norm!B$3,norm!B$4,norm!B$5,norm!B$6,norm!B$7) -> 7.4 | Q7: Uge 5 | R7: =M37-R1 -> -8.016666667
B8: 1900-01-07 | C8: 2018-01-06 | J8: =IF(E8="ferie",N8/24,IF(OR(F8="",G8=""),"",H8-I8)) ->  | N8: =CHOOSE(WEEKDAY(C8,2),norm!B$1,norm!B$2,norm!B$3,norm!B$4,norm!B$5,norm!B$6,norm!B$7) -> 0
B9: 1900-01-01 | C9: 2018-01-07 | L9: =SUM(J3:J7) -> 1.282638889 | M9: =L9*24 -> 30.78333333 | N9: =CHOOSE(WEEKDAY(C9,2),norm!B$1,norm!B$2,norm!B$3,norm!B$4,norm!B$5,norm!B$6,norm!B$7) -> 0
A10: Uge 2 | B10: 1900-01-02 | C10: 2018-01-08 | F10: 07:00:00 | G10: 15:30:00 | H10: =IF(OR(F10="",G10=""),"",IF(G10<F10,G10+1-F10,G10-F10)) -> 08:30:00 | I10: 00:31:00 | J10: =IF(OR(F10="",G10=""),"",H10-I10) -> 07:59:00 | K10: =IFERROR(J10*24,"") -> 7.983333333 | N10: =CHOOSE(WEEKDAY(C10,2),norm!B$1,norm!B$2,norm!B$3,norm!B$4,norm!B$5,norm!B$6,norm!B$7) -> 7.4 | R10: =M38-M39 -> -16.08333333
B11: 1900-01-03 | C11: 2018-01-09 | F11: 20:00:00 | G11: 01:00:00 | H11: =IF(OR(F11="",G11=""),"",IF(G11<F11,G11+1-F11,G11-F11)) -> 05:00:00 | J11: =IF(OR(F11="",G11=""),"",H11-I11) -> 05:00:00 | K11: =IFERROR(J11*24,"") -> 5 | N11: =CHOOSE(WEEKDAY(C11,2),norm!B$1,norm!B$2,norm!B$3,norm!B$4,norm!B$5,norm!B$6,norm!B$7) -> 7.4
B12: 1900-01-04 | C12: 2018-01-10 | F12: 07:00:00 | G12: 23:00:00 | H12: =IF(OR(F12="",G12=""),"",IF(G12<F12,G12+1-F12,G12-F12)) -> 16:00:00 | J12: =IF(OR(F12="",G12=""),"",H12-I12) -> 16:00:00 | K12: =IFERROR(J12*24,"") -> 16 | N12: =CHOOSE(WEEKDAY(C12,2),norm!B$1,norm!B$2,norm!B$3,norm!B$4,norm!B$5,norm!B$6,norm!B$7) -> 7.4
B13: 1900-01-05 | C13: 2018-01-11 | H13: =IF(OR(F13="",G13=""),"",IF(G13<F13,G13+1-F13,G13-F13)) ->  | J13: =IF(OR(F13="",G13=""),"",H13-I13) ->  | K13: =IFERROR(J13*24,"") ->  | N13: =CHOOSE(WEEKDAY(C13,2),norm!B$1,norm!B$2,norm!B$3,norm!B$4,norm!B$5,norm!B$6,norm!B$7) -> 7.4
B14: 1900-01-06 | C14: 2018-01-12 | H14: =IF(OR(F14="",G14=""),"",IF(G14<F14,G14+1-F14,G14-F14)) ->  | K14: =IFERROR(J14*24,"") ->  | N14: =CHOOSE(WEEKDAY(C14,2),norm!B$1,norm!B$2,norm!B$3,norm!B$4,norm!B$5,norm!B$6,norm!B$7) -> 7.4
B15: 1900-01-07 | C15: 2018-01-13 | K15: =IFERROR(J15*24,"") ->  | N15: =CHOOSE(WEEKDAY(C15,2),norm!B$1,norm!B$2,norm!B$3,norm!B$4,norm!B$5,norm!B$6,norm!B$7) -> 0
B16: 1900-01-01 | C16: 2018-01-14 | L16: =SUM(J10:J14) -> 1.207638889 | M16: =L16*24 -> 28.98333333 | N16: =CHOOSE(WEEKDAY(C16,2),norm!B$1,norm!B$2,norm!B$3,norm!B$4,norm!B$5,norm!B$6,norm!B$7) -> 0
A17: Uge 3 | B17: 1900-01-02 | C17: 2018-01-15 | F17: 07:00:00 | G17: 15:30:00 | H17: =IF(OR(F17="",G17=""),"",IF(G17<F17,G17+1-F17,G17-F17)) -> 08:30:00 | I17: 00:31:00 | J17: =IF(OR(F17="",G17=""),"",H17-I17) -> 07:59:00 | K17: =IFERROR(J17*24,"") -> 7.983333333 | N17: =CHOOSE(WEEKDAY(C17,2),norm!B$1,norm!B$2,norm!B$3,norm!B$4,norm!B$5,norm!B$6,norm!B$7) -> 7.4
B18: 1900-01-03 | C18: 2018-01-16 | F18: 20:00:00 | G18: 01:00:00 | H18: =IF(OR(F18="",G18=""),"",IF(G18<F18,G18+1-F18,G18-F18)) -> 05:00:00 | J18: =IF(OR(F18="",G18=""),"",H18-I18) -> 05:00:00 | K18: =IFERROR(J18*24,"") -> 5 | N18: =CHOOSE(WEEKDAY(C18,2),norm!B$1,norm!B$2,norm!B$3,norm!B$4,norm!B$5,norm!B$6,norm!B$7) -> 7.4
B19: 1900-01-04 | C19: 2018-01-17 | F19: 07:00:00 | G19: 23:00:00 | H19: =IF(OR(F19="",G19=""),"",IF(G19<F19,G19+1-F19,G19-F19)) -> 16:00:00 | J19: =IF(OR(F19="",G19=""),"",H19-I19) -> 16:00:00 | K19: =IFERROR(J19*24,"") -> 16 | N19: =CHOOSE(WEEKDAY(C19,2),norm!B$1,norm!B$2,norm!B$3,norm!B$4,norm!B$5,norm!B$6,norm!B$7) -> 7.4
B20: 1900-01-05 | C20: 2018-01-18 | H20: =IF(OR(F20="",G20=""),"",IF(G20<F20,G20+1-F20,G20-F20)) ->  | J20: =IF(OR(F20="",G20=""),"",H20-I20) ->  | K20: =IFERROR(J20*24,"") ->  | N20: =CHOOSE(WEEKDAY(C20,2),norm!B$1,norm!B$2,norm!B$3,norm!B$4,norm!B$5,norm!B$6,norm!B$7) -> 7.4
B21: 1900-01-06 | C21: 2018-01-19 | H21: =IF(OR(F21="",G21=""),"",IF(G21<F21,G21+1-F21,G21-F21)) ->  | K21: =IFERROR(J21*24,"") ->  | N21: =CHOOSE(WEEKDAY(C21,2),norm!B$1,norm!B$2,norm!B$3,norm!B$4,norm!B$5,norm!B$6,norm!B$7) -> 7.4
B22: 1900-01-07 | C22: 2018-01-20 | H22: =IF(OR(F22="",G22=""),"",IF(G22<F22,G22+1-F22,G22-F22)) ->  | K22: =IFERROR(J22*24,"") ->  | N22: =CHOOSE(WEEKDAY(C22,2),norm!B$1,norm!B$2,norm!B$3,norm!B$4,norm!B$5,norm!B$6,norm!B$7) -> 0
B23: 1900-01-01 | C23: 2018-01-21 | L23: =SUM(J17:J21) -> 1.207638889 | M23: =L23*24 -> 28.98333333 | N23: =CHOOSE(WEEKDAY(C23,2),norm!B$1,norm!B$2,norm!B$3,norm!B$4,norm!B$5,norm!B$6,norm!B$7) -> 0
A24: Uge 4 | B24: 1900-01-02 | C24: 2018-01-22 | F24: 07:00:00 | G24: 15:30:00 | H24: =IF(OR(F24="",G24=""),"",IF(G24<F24,G24+1-F24,G24-F24)) -> 08:30:00 | I24: 00:31:00 | J24: =IF(OR(F24="",G24=""),"",H24-I24) -> 07:59:00 | K24: =IFERROR(J24*24,"") -> 7.983333333 | N24: =CHOOSE(WEEKDAY(C24,2),norm!B$1,norm!B$2,norm!B$3,norm!B$4,norm!B$5,norm!B$6,norm!B$7) -> 7.4
B25: 1900-01-03 | C25: 2018-01-23 | F25: 20:00:00 | G25: 01:00:00 | H25: =IF(OR(F25="",G25=""),"",IF(G25<F25,G25+1-F25,G25-F25)) -> 05:00:00 | J25: =IF(OR(F25="",G25=""),"",H25-I25) -> 05:00:00 | K25: =IFERROR(J25*24,"") -> 5 | N25: =CHOOSE(WEEKDAY(C25,2),norm!B$1,norm!B$2,norm!B$3,norm!B$4,norm!B$5,norm!B$6,norm!B$7) -> 7.4
B26: 1900-01-04 | C26: 2018-01-24 | F26: 07:00:00 | G26: 23:00:00 | H26: =IF(OR(F26="",G26=""),"",IF(G26<F26,G26+1-F26,G26-F26)) -> 16:00:00 | J26: =IF(OR(F26="",G26=""),"",H26-I26) -> 16:00:00 | K26: =IFERROR(J26*24,"") -> 16 | N26: =CHOOSE(WEEKDAY(C26,2),norm!B$1,norm!B$2,norm!B$3,norm!B$4,norm!B$5,norm!B$6,norm!B$7) -> 7.4
B27: 1900-01-05 | C27: 2018-01-25 | H27: =IF(OR(F27="",G27=""),"",IF(G27<F27,G27+1-F27,G27-F27)) ->  | J27: =IF(OR(F27="",G27=""),"",H27-I27) ->  | K27: =IFERROR(J27*24,"") ->  | N27: =CHOOSE(WEEKDAY(C27,2),norm!B$1,norm!B$2,norm!B$3,norm!B$4,norm!B$5,norm!B$6,norm!B$7) -> 7.4
B28: 1900-01-06 | C28: 2018-01-26 | H28: =IF(OR(F28="",G28=""),"",IF(G28<F28,G28+1-F28,G28-F28)) ->  | J28: =IF(OR(F28="",G28=""),"",H28-I28) ->  | K28: =IFERROR(J28*24,"") ->  | N28: =CHOOSE(WEEKDAY(C28,2),norm!B$1,norm!B$2,norm!B$3,norm!B$4,norm!B$5,norm!B$6,norm!B$7) -> 7.4
B29: 1900-01-07 | C29: 2018-01-27 | H29: =IF(OR(F29="",G29=""),"",IF(G29<F29,G29+1-F29,G29-F29)) ->  | J29: =IF(OR(F29="",G29=""),"",H29-I29) ->  | K29: =IFERROR(J29*24,"") ->  | N29: =CHOOSE(WEEKDAY(C29,2),norm!B$1,norm!B$2,norm!B$3,norm!B$4,norm!B$5,norm!B$6,norm!B$7) -> 0
B30: 1900-01-01 | C30: 2018-01-28 | L30: =SUM(J24:J28) -> 1.207638889 | M30: =L30*24 -> 28.98333333 | N30: =CHOOSE(WEEKDAY(C30,2),norm!B$1,norm!B$2,norm!B$3,norm!B$4,norm!B$5,norm!B$6,norm!B$7) -> 0
A31: Uge 5 | B31: 1900-01-02 | C31: =IF(MONTH(C30+1)>MONTH(C30),"",C30+1) -> 2018-01-29 | F31: 07:00:00 | G31: 15:30:00 | H31: =IF(OR(F31="",G31=""),"",IF(G31<F31,G31+1-F31,G31-F31)) -> 08:30:00 | I31: 00:31:00 | J31: =IF(OR(F31="",G31=""),"",H31-I31) -> 07:59:00 | K31: =IFERROR(J31*24,"") -> 7.983333333 | N31: =CHOOSE(WEEKDAY(C31,2),norm!B$1,norm!B$2,norm!B$3,norm!B$4,norm!B$5,norm!B$6,norm!B$7) -> 7.4
B32: 1900-01-03 | C32: 2018-01-30 | F32: 20:00:00 | G32: 01:00:00 | H32: =IF(OR(F32="",G32=""),"",IF(G32<F32,G32+1-F32,G32-F32)) -> 05:00:00 | J32: =IF(OR(F32="",G32=""),"",H32-I32) -> 05:00:00 | K32: =IFERROR(J32*24,"") -> 5 | N32: =CHOOSE(WEEKDAY(C32,2),norm!B$1,norm!B$2,norm!B$3,norm!B$4,norm!B$5,norm!B$6,norm!B$7) -> 7.4
B33: 1900-01-04 | C33: 2018-01-31 | F33: 07:00:00 | G33: 23:00:00 | H33: =IF(OR(F33="",G33=""),"",IF(G33<F33,G33+1-F33,G33-F33)) -> 16:00:00 | J33: =IF(OR(F33="",G33=""),"",H33-I33) -> 16:00:00 | K33: =IFERROR(J33*24,"") -> 16 | N33: =CHOOSE(WEEKDAY(C33,2),norm!B$1,norm!B$2,norm!B$3,norm!B$4,norm!B$5,norm!B$6,norm!B$7) -> 7.4
B34: =IFERROR(WEEKDAY(C34),"") ->  | C34: =IFERROR(IF(MONTH(C33+1)>MONTH(C33),"",C33+1),"") ->  | H34: =IF(OR(F34="",G34=""),"",IF(G34<F34,G34+1-F34,G34-F34)) ->  | J34: =IF(OR(F34="",G34=""),"",H34-I34) ->  | K34: =IFERROR(J34*24,"") ->  | N34: =IF(C34<>"",CHOOSE(WEEKDAY(C34,2),norm!B$1,norm!B$2,norm!B$3,norm!B$4,norm!B$5,norm!B$6,norm!B$7),"") -> 
B35: =IFERROR(WEEKDAY(C35),"") ->  | C35: =IFERROR(IF(MONTH(C34+1)>MONTH(C34),"",C34+1),"") ->  | H35: =IF(OR(F35="",G35=""),"",IF(G35<F35,G35+1-F35,G35-F35)) ->  | K35: =IFERROR(J35*24,"") ->  | N35: =IF(C35<>"",CHOOSE(WEEKDAY(C35,2),norm!B$1,norm!B$2,norm!B$3,norm!B$4,norm!B$5,norm!B$6,norm!B$7),"") -> 
N36: =IF(C36<>"",CHOOSE(WEEKDAY(C36,2),norm!B$1,norm!B$2,norm!B$3,norm!B$4,norm!B$5,norm!B$6,norm!B$7),"") -> 
L37: =SUM(J31:J35) -> 1.207638889 | M37: =L37*24 -> 28.98333333 | N37: =IF(C37<>"",CHOOSE(WEEKDAY(C37,2),norm!B$1,norm!B$2,norm!B$3,norm!B$4,norm!B$5,norm!B$6,norm!B$7),"") -> 
M38: =SUM(M9:M37) -> 146.7166667
C39: =NETWORKDAYS(C3,C33,C3) -> 22 | M39: =C39*7.4 -> 162.8
N40: =SUM(N3:N39) -> 170.2

Sheet T.
C1: =IF(C2=365,28,29) -> 28
A2: Salt og snerydning | C2: =364+DATE($C$3,3,1)-DATE($C$3,2,28) -> 365
C3: =YEAR(Februar!C3) -> 2018
A4: Arrangementer | B4: afsp.
A5: Høstfest | B5: ferie
A6: Dimissionsfest | B6: syg
A7: juleklip

Sheet norm
A1: mandag | B1: 7.4
A2: tirsdag | B2: 7.4
A3: onsdag | B3: 7.4
A4: torsdag | B4: 7.4
A5: fredag | B5: 7.4
A6: lørdag | B6: 0
A7: søndag | B7: 0
A9: Uge Norm | B9: 1.541666667
A11: Dags norm | B11: 7.4

Sheet helligdage
A1: Årstal | B1: =YEAR(Januar!C4) -> 2018 | C1: Type | G1: X | H1: Årstal | I1: =B1 -> 2018
A2: Nytårsdag | B2: =DATE(B1,1,1) -> 2018-01-01 | C2: Fast | G2: A | H2: Rest | I2: =MOD(I1,19) -> 4
A3: Skærtorsdag | B3: =B5-3 -> 2018-03-29 | C3: Beregnet | G3: B | H3: Heltal | I3: =INT(I1/100) -> 20
A4: Langfredag | B4: =B5-2 -> 2018-03-30 | C4: Beregnet | G4: C | H4: Rest | I4: =MOD(I1,100) -> 18 | J4: =MOD(I1,100) -> 18
A5: Påskedag | B5: =FLOOR(DAY(MINUTE(B1/38)/2+56)&"/5/"&B1,7)-34 -> 2018-04-01 | C5: Beregnet | G5: D | H5: Heltal | I5: =INT(I3/4) -> 5
A6: 2. påskedag | B6: =$B$5+1 -> 2018-04-02 | C6: Beregnet | G6: E | H6: Rest | I6: =MOD(I3,4) -> 0
A7: Store Bededag | B7: =$B$5+26 -> 2018-04-27 | C7: Beregnet | G7: F | H7: Heltal | I7: =INT((I3+8)/25) -> 1
A8: Kristi Himmelfart | B8: =$B$5+39 -> 2018-05-10 | C8: Beregnet | G8: G | H8: Heltal | I8: =INT((I3-I7+1)/3) -> 6
A9: Pinsedag | B9: =$B$5+49 -> 2018-05-20 | C9: Beregnet | G9: H | H9: Heltal | I9: =MOD(19*I2+I3-I5-I8+15,30) -> 10
A10: 2. pinsedag | B10: =$B$5+50 -> 2018-05-21 | C10: Beregnet | G10: J | H10: Heltal | I10: =INT(I4/4) -> 4
A11: 1. juledag | B11: =DATE(B1,12,25) -> 2018-12-25 | C11: Fast | G11: K | H11: Rest | I11: =MOD(I4,4) -> 2
A12: 2. juledag | B12: =DATE(B1,12,26) -> 2018-12-26 | C12: Fast | G12: L | H12: Rest | I12: =MOD(32+2*I6+2*I10-I9-I11,7) -> 0
G13: M | H13: Heltal | I13: =INT((I2+11*I9+22*I12)/451) -> 0
G14: N | H14: Heltal | I14: =INT((I9+I12-7*I13+114)/31) -> 4
A15: Nytårsaftens dag | B15: =DATE(B1,12,31) -> 2018-12-31 | C15: Fast | G15: P | H15: Rest | I15: =MOD(I9+I12-7*I13+114,31) -> 0
G16: Q | H16: Formel | I16: =(I14-3)*31+I15-20 -> 11
H18: Dag | I18: =I15+1 -> 1
H19: Måned | I19: =I14 -> 4
J21: Mellemregning | L21: Diff ift Påskesøndag
B22: =på ->  | H22: Skærtorsdag | J22: =J24-3 -> 2018-03-29 | K22: =K24-3 -> 2018-03-29 | L22: -3
H23: Langfredag | J23: =J24-2 -> 2018-03-30 | K23: =K24-2 -> 2018-03-30 | L23: -2
H24: Påskedag | J24: =DATE(I1,I19,I18) -> 2018-04-01 | K24: =DATE(I1,I19,I18) -> 2018-04-01
H25: 2. påskedag | J25: =J24+1 -> 2018-04-02 | K25: =K24+1 -> 2018-04-02 | L25: 1
H26: 1. s.e. påske | J26: =J24+7 -> 2018-04-08
H27: 2. s.e. påske | J27: =J26+7 -> 2018-04-15
H28: 3. s.e. påske | J28: =J27+7 -> 2018-04-22
H29: Store Bededag | J29: =J28+5 -> 2018-04-27 | K29: =K24+26 -> 2018-04-27 | L29: 26
H30: 4. s.e. påske | J30: =J28+7 -> 2018-04-29
H31: 5. s.e. påske | J31: =J30+7 -> 2018-05-06
H32: Kristi Himmelfart | J32: =J31+4 -> 2018-05-10 | K32: =K24+39 -> 2018-05-10 | L32: 39
H33: 6.s.e. påske | J33: =J31+7 -> 2018-05-13
H34: Pinsedag | J34: =J33+7 -> 2018-05-20 | K34: =K24+49 -> 2018-05-20 | L34: 49
H35: 2. pinsedag | J35: =J34+1 -> 2018-05-21 | K35: =K24+50 -> 2018-05-21 | L35: 50
